[Event "Titled Tuesday Blitz June 6 Early 2023"]
[White "Hinds, Nathan"]
[Black "Porat, Tori"]
[WhiteFideId "7400730"]
[BlackFideId "30982626"]
[WhiteElo "2001"]
[BlackElo "1752"]
[Result "1-0"]
[Round "6"]
[TimeControl "180+2"]
[Date "2023.06.06"]
[WhiteClock "0:00:34"]
[BlackClock "0:00:14"]
[Board "175"]

1. Nf3 {[%clk 0:03:00]}  d5 {[%clk 0:02:59]} 2. d4 {[%clk 0:03:00]}  Nf6 {[%clk 0:02:56]} 3. c4 {[%clk 0:03:01]}  c6 {[%clk 0:02:56]} 4. Nc3 {[%clk 0:03:00]}  e6 {[%clk 0:02:54]} 5. g3 {[%clk 0:03:01]}  Bb4 {[%clk 0:02:52]} 6. Bg2 {[%clk 0:03:01]}  Ne4 {[%clk 0:02:47]} 7. Bd2 {[%clk 0:03:00]}  Nxd2 {[%clk 0:02:47]} 8. Qxd2 {[%clk 0:03:01]}  O-O {[%clk 0:02:46]} 9. O-O {[%clk 0:03:02]}  dxc4 {[%clk 0:02:44]} 10. Ne5 {[%clk 0:03:01]}  Nd7 {[%clk 0:02:34]} 11. Nxc4 {[%clk 0:03:02]}  Nf6 {[%clk 0:02:33]} 12. a3 {[%clk 0:03:02]}  Be7 {[%clk 0:02:31]} 13. Rfd1 {[%clk 0:03:00]}  Qc7 {[%clk 0:02:24]} 14. e4 {[%clk 0:02:59]}  Rd8 {[%clk 0:02:23]} 15. Rac1 {[%clk 0:02:54]}  a6 {[%clk 0:02:13]} 16. Qe2 {[%clk 0:02:52]}  b5 {[%clk 0:02:09]} 17. Ne5 {[%clk 0:02:52]}  Rb8 {[%clk 0:01:57]} 18. b4 {[%clk 0:02:51]}  Bd6 {[%clk 0:01:49]} 19. Nd3 {[%clk 0:02:48]}  a5 {[%clk 0:01:47]} 20. e5 {[%clk 0:02:48]}  Be7 {[%clk 0:01:45]} 21. exf6 {[%clk 0:02:48]}  Bxf6 {[%clk 0:01:43]} 22. Nc5 {[%clk 0:02:43]}  axb4 {[%clk 0:01:38]} 23. axb4 {[%clk 0:02:43]}  Bxd4 {[%clk 0:01:37]} 24. N3e4 {[%clk 0:02:33]}  e5 {[%clk 0:01:32]} 25. Nb3 {[%clk 0:02:27]}  Be6 {[%clk 0:01:26]} 26. Nxd4 {[%clk 0:02:27]}  exd4 {[%clk 0:01:24]} 27. Nc5 {[%clk 0:02:25]}  Bc4 {[%clk 0:01:23]} 28. Qg4 {[%clk 0:02:24]}  d3 {[%clk 0:01:21]} 29. Rc3 {[%clk 0:02:20]}  Qe5 {[%clk 0:01:17]} 30. Rcc1 {[%clk 0:02:05]}  d2 {[%clk 0:01:16]} 31. Rc2 {[%clk 0:02:02]}  Qe1+ {[%clk 0:01:13]} 32. Bf1 {[%clk 0:01:58]}  Bxf1 {[%clk 0:01:10]} 33. Rcxd2 {[%clk 0:01:28]}  Be2+ {[%clk 0:00:41]} 34. Rxe1 {[%clk 0:01:24]}  Bxg4 {[%clk 0:00:41]} 35. Rxd8+ {[%clk 0:01:12]}  Rxd8 {[%clk 0:00:41]} 36. Kg2 {[%clk 0:01:13]}  h6 {[%clk 0:00:40]} 37. h3 {[%clk 0:01:13]}  Bf5 {[%clk 0:00:39]} 38. g4 {[%clk 0:01:13]}  Bg6 {[%clk 0:00:39]} 39. Re7 {[%clk 0:01:13]}  Rd4 {[%clk 0:00:38]} 40. Na6 {[%clk 0:01:12]}  Rc4 {[%clk 0:00:34]} 41. Rc7 {[%clk 0:01:09]}  Be4+ {[%clk 0:00:33]} 42. f3 {[%clk 0:01:10]}  Bd5 {[%clk 0:00:33]} 43. Kf2 {[%clk 0:01:03]}  Rc2+ {[%clk 0:00:33]} 44. Ke3 {[%clk 0:01:00]}  Rc3+ {[%clk 0:00:33]} 45. Kd4 {[%clk 0:01:01]}  Rxf3 {[%clk 0:00:33]} 46. Nb8 {[%clk 0:00:59]}  Rxh3 {[%clk 0:00:32]} 47. Nxc6 {[%clk 0:00:58]}  Bxc6 {[%clk 0:00:28]} 48. Rxc6 {[%clk 0:00:59]}  Rh1 {[%clk 0:00:26]} 49. Rb6 {[%clk 0:00:58]}  Rg1 {[%clk 0:00:23]} 50. Rxb5 {[%clk 0:00:56]}  Rxg4+ {[%clk 0:00:24]} 51. Kc3 {[%clk 0:00:55]}  Rg1 {[%clk 0:00:23]} 52. Rf5 {[%clk 0:00:53]}  Rb1 {[%clk 0:00:21]} 53. Rf2 {[%clk 0:00:54]}  Rc1+ {[%clk 0:00:20]} 54. Kb2 {[%clk 0:00:53]}  Rc4 {[%clk 0:00:19]} 55. Kb3 {[%clk 0:00:53]}  Rc1 {[%clk 0:00:19]} 56. b5 {[%clk 0:00:53]}  Rb1+ {[%clk 0:00:19]} 57. Rb2 {[%clk 0:00:53]}  Rc1 {[%clk 0:00:20]} 58. b6 {[%clk 0:00:53]}  Rc8 {[%clk 0:00:20]} 59. b7 {[%clk 0:00:53]}  Rb8 {[%clk 0:00:20]} 60. Kc4 {[%clk 0:00:53]}  h5 {[%clk 0:00:20]} 61. Kc5 {[%clk 0:00:54]}  h4 {[%clk 0:00:20]} 62. Kc6 {[%clk 0:00:55]}  h3 {[%clk 0:00:19]} 63. Kc7 {[%clk 0:00:56]}  Rxb7+ {[%clk 0:00:19]} 64. Kxb7 {[%clk 0:00:56]}  g5 {[%clk 0:00:18]} 65. Kc6 {[%clk 0:00:51]}  g4 {[%clk 0:00:18]} 66. Kd5 {[%clk 0:00:52]}  Kg7 {[%clk 0:00:18]} 67. Ke4 {[%clk 0:00:53]}  Kg6 {[%clk 0:00:17]} 68. Kf4 {[%clk 0:00:53]}  Kh5 {[%clk 0:00:16]} 69. Kg3 {[%clk 0:00:52]}  f5 {[%clk 0:00:16]} 70. Rb8 {[%clk 0:00:51]}  Kg5 {[%clk 0:00:16]} 71. Rg8+ {[%clk 0:00:51]}  Kf6 {[%clk 0:00:16]} 72. Rf8+ {[%clk 0:00:51]}  Kg5 {[%clk 0:00:17]} 73. Rg8+ {[%clk 0:00:52]}  Kf6 {[%clk 0:00:17]} 74. Ra8 {[%clk 0:00:49]}  Kg5 {[%clk 0:00:17]} 75. Ra5 {[%clk 0:00:49]}  Kg6 {[%clk 0:00:17]} 76. Rb5 {[%clk 0:00:42]}  Kg5 {[%clk 0:00:16]} 77. Rc5 {[%clk 0:00:41]}  Kf6 {[%clk 0:00:16]} 78. Kf4 {[%clk 0:00:38]}  h2 {[%clk 0:00:14]} 79. Rc1 {[%clk 0:00:37]}  Kg6 {[%clk 0:00:13]} 80. Rh1 {[%clk 0:00:36]}  Kh5 {[%clk 0:00:12]} 81. Rxh2+ {[%clk 0:00:36]}  Kg6 {[%clk 0:00:13]} 82. Rb2 {[%clk 0:00:36]}  Kf6 {[%clk 0:00:13]} 83. Rb6+ {[%clk 0:00:36]}  Kg7 {[%clk 0:00:13]} 84. Kxf5 {[%clk 0:00:36]}  g3 {[%clk 0:00:13]} 85. Rb2 {[%clk 0:00:37]}  Kf7 {[%clk 0:00:13]} 86. Rg2 {[%clk 0:00:37]}  Ke7 {[%clk 0:00:13]} 87. Rxg3 {[%clk 0:00:38]}  Kd6 {[%clk 0:00:13]} 88. Rd3+ {[%clk 0:00:38]}  Kc5 {[%clk 0:00:13]} 89. Ke4 {[%clk 0:00:39]}  Kc4 {[%clk 0:00:14]} 90. Rd4+ {[%clk 0:00:37]}  Kc5 {[%clk 0:00:14]} 91. Ke5 {[%clk 0:00:37]}  Kc6 {[%clk 0:00:14]} 92. Rd5 {[%clk 0:00:38]}  Kc7 {[%clk 0:00:14]} 93. Rd6 {[%clk 0:00:38]}  Kc8 {[%clk 0:00:14]} 94. Kd5 {[%clk 0:00:38]}  Kc7 {[%clk 0:00:14]} 95. Kc5 {[%clk 0:00:38]}  Kc8 {[%clk 0:00:15]} 96. Kc6 {[%clk 0:00:38]}  Kb8 {[%clk 0:00:15]} 97. Rd7 {[%clk 0:00:37]}  Kc8 {[%clk 0:00:14]} 98. Kd6 {[%clk 0:00:32]}  Kb8 {[%clk 0:00:14]} 99. Rc7 {[%clk 0:00:33]}  Ka8 {[%clk 0:00:14]} 100. Kc6 {[%clk 0:00:33]}  Kb8 {[%clk 0:00:14]} 101. Kb6 {[%clk 0:00:33]}  Ka8 {[%clk 0:00:13]} 102. Rc5 {[%clk 0:00:32]}  Kb8 {[%clk 0:00:12]} 103. Rc4 {[%clk 0:00:33]}  Ka8 {[%clk 0:00:12]} 104. Rc3 {[%clk 0:00:33]}  Kb8 {[%clk 0:00:13]} 105. Rc2 {[%clk 0:00:34]}  Ka8 {[%clk 0:00:13]} 106. Rc1 {[%clk 0:00:34]}  Kb8 {[%clk 0:00:14]} 107. Rc7 {[%clk 0:00:33]}  Ka8 {[%clk 0:00:14]} 108. Rc8# {[%clk 0:00:34]} 1-0


[Site "https://www.chess.com"]

[Event "Titled Tuesday Blitz June 6 Early 2023"]
[White "White, John S."]
[Black "Sokolov, Andrei"]
[WhiteFideId "2502348"]
[BlackFideId "11600306"]
[WhiteElo "1980"]
[BlackElo "2473"]
[Result "1-0"]
[Round "6"]
[TimeControl "180+2"]
[Date "2023.06.06"]
[WhiteClock "0:01:28"]
[BlackClock "0:02:11"]
[Board "177"]

1. e4 {[%clk 0:03:00]}  c5 {[%clk 0:02:57]} 2. Nf3 {[%clk 0:03:00]}  Nc6 {[%clk 0:02:56]} 3. d4 {[%clk 0:03:01]}  cxd4 {[%clk 0:02:55]} 4. Nxd4 {[%clk 0:03:02]}  g6 {[%clk 0:02:56]} 5. Nc3 {[%clk 0:03:02]}  Bg7 {[%clk 0:02:56]} 6. Be3 {[%clk 0:03:03]}  Nf6 {[%clk 0:02:56]} 7. Bc4 {[%clk 0:03:00]}  O-O {[%clk 0:02:57]} 8. f3 {[%clk 0:02:59]}  Qa5 {[%clk 0:02:55]} 9. O-O {[%clk 0:02:57]}  Qd8 {[%clk 0:02:40]} 10. Nd5 {[%clk 0:02:51]}  Nxd5 {[%clk 0:02:39]} 11. Bxd5 {[%clk 0:02:50]}  Qb6 {[%clk 0:02:37]} 12. Bxc6 {[%clk 0:02:33]}  bxc6 {[%clk 0:02:33]} 13. Qd3 {[%clk 0:02:11]}  Qxb2 {[%clk 0:02:29]} 14. Rfb1 {[%clk 0:02:10]}  Bxd4 {[%clk 0:02:25]} 15. Bxd4 {[%clk 0:02:09]}  Qxb1+ {[%clk 0:02:25]} 16. Rxb1 {[%clk 0:02:08]}  d6 {[%clk 0:02:25]} 17. Qc3 {[%clk 0:02:03]}  Be6 {[%clk 0:02:25]} 18. a4 {[%clk 0:01:53]}  c5 {[%clk 0:02:24]} 19. Be3 {[%clk 0:01:52]}  Rab8 {[%clk 0:02:18]} 20. Rxb8 {[%clk 0:01:49]}  Rxb8 {[%clk 0:02:18]} 21. Qa5 {[%clk 0:01:49]}  Bc4 {[%clk 0:02:16]} 22. Qxa7 {[%clk 0:01:45]}  Rb2 {[%clk 0:02:15]} 23. Qxe7 {[%clk 0:01:41]}  h5 {[%clk 0:02:14]} 24. Bh6 {[%clk 0:01:36]}  Kh7 {[%clk 0:02:12]} 25. Qf8 {[%clk 0:01:29]}  Rb1+ {[%clk 0:02:12]} 26. Kf2 {[%clk 0:01:29]}  h4 {[%clk 0:02:11]} 27. Qg7# {[%clk 0:01:28]} 1-0


[Site "https://www.chess.com"]

[Event "Titled Tuesday Blitz June 6 Early 2023"]
[White "Blackwhite017"]
[Black "Mishra, Manoj"]
[BlackFideId "5006007"]
[WhiteElo "2074"]
[BlackElo "1847"]
[Result "1-0"]
[Round "6"]
[TimeControl "180+2"]
[Date "2023.06.06"]
[WhiteClock "0:00:15"]
[BlackClock "0:00:09"]
[Board "178"]

1. e4 {[%clk 0:03:00]}  c5 {[%clk 0:02:56]} 2. Nf3 {[%clk 0:02:58]}  Nc6 {[%clk 0:02:56]} 3. d4 {[%clk 0:02:58]}  cxd4 {[%clk 0:02:57]} 4. Nxd4 {[%clk 0:02:59]}  Nf6 {[%clk 0:02:56]} 5. Nc3 {[%clk 0:02:59]}  e5 {[%clk 0:02:53]} 6. Ndb5 {[%clk 0:02:58]}  d6 {[%clk 0:02:48]} 7. Bg5 {[%clk 0:02:56]}  a6 {[%clk 0:02:46]} 8. Na3 {[%clk 0:02:56]}  Be6 {[%clk 0:02:44]} 9. Nc4 {[%clk 0:02:54]}  b5 {[%clk 0:02:41]} 10. Ne3 {[%clk 0:02:53]}  h6 {[%clk 0:02:31]} 11. Bxf6 {[%clk 0:02:48]}  Qxf6 {[%clk 0:02:29]} 12. Ncd5 {[%clk 0:02:48]}  Qd8 {[%clk 0:02:28]} 13. Be2 {[%clk 0:02:39]}  Be7 {[%clk 0:02:26]} 14. O-O {[%clk 0:02:38]}  h5 {[%clk 0:02:23]} 15. f4 {[%clk 0:02:17]}  exf4 {[%clk 0:02:19]} 16. Nxf4 {[%clk 0:02:14]}  Qb6 {[%clk 0:02:16]} 17. Qd2 {[%clk 0:01:59]}  Ne5 {[%clk 0:02:03]} 18. Kh1 {[%clk 0:01:50]}  Bg5 {[%clk 0:01:55]} 19. Ned5 {[%clk 0:01:15]}  Bxd5 {[%clk 0:01:51]} 20. Qxd5 {[%clk 0:01:16]}  Rd8 {[%clk 0:01:20]} 21. Nxh5 {[%clk 0:00:55]}  g6 {[%clk 0:01:11]} 22. Nf6+ {[%clk 0:00:52]}  Bxf6 {[%clk 0:01:10]} 23. Rxf6 {[%clk 0:00:53]}  Ke7 {[%clk 0:01:07]} 24. Raf1 {[%clk 0:00:47]}  Rxh2+ {[%clk 0:00:54]} 25. Kxh2 {[%clk 0:00:43]}  Rh8+ {[%clk 0:00:55]} 26. Kg3 {[%clk 0:00:40]}  Qe3+ {[%clk 0:00:53]} 27. R6f3 {[%clk 0:00:20]}  Nxf3 {[%clk 0:00:19]} 28. Rxf3 {[%clk 0:00:15]}  Qxe2 {[%clk 0:00:17]} 29. Rxf7+ {[%clk 0:00:15]}  Kd8 {[%clk 0:00:10]} 30. Qxd6+ {[%clk 0:00:15]}  Kc8 {[%clk 0:00:09]} 31. Qc7# {[%clk 0:00:15]} 1-0


[Site "https://www.chess.com"]

[Event "Titled Tuesday Blitz June 6 Early 2023"]
[White "Alexanian, Nelli"]
[Black "Francisco_Ferrari"]
[WhiteFideId "4170539"]
[WhiteElo "2037"]
[BlackElo "2131"]
[Result "0-1"]
[Round "6"]
[TimeControl "180+2"]
[Date "2023.06.06"]
[WhiteClock "0:01:46"]
[BlackClock "0:00:38"]
[Board "180"]

1. d4 {[%clk 0:03:00]}  g6 {[%clk 0:02:57]} 2. e4 {[%clk 0:02:54]}  Bg7 {[%clk 0:02:58]} 3. c4 {[%clk 0:02:53]}  d6 {[%clk 0:02:57]} 4. h4 {[%clk 0:02:49]}  h5 {[%clk 0:02:56]} 5. Nc3 {[%clk 0:02:48]}  Nc6 {[%clk 0:02:49]} 6. Be3 {[%clk 0:02:47]}  Nf6 {[%clk 0:02:46]} 7. f3 {[%clk 0:02:45]}  e5 {[%clk 0:02:35]} 8. d5 {[%clk 0:02:44]}  Nd4 {[%clk 0:02:35]} 9. Nge2 {[%clk 0:02:39]}  Nxe2 {[%clk 0:02:18]} 10. Bxe2 {[%clk 0:02:38]}  O-O {[%clk 0:02:08]} 11. Qd2 {[%clk 0:02:34]}  a6 {[%clk 0:02:06]} 12. Bh6 {[%clk 0:02:25]}  Bd7 {[%clk 0:01:54]} 13. O-O-O {[%clk 0:02:19]}  b5 {[%clk 0:01:52]} 14. Rdg1 {[%clk 0:02:15]}  bxc4 {[%clk 0:01:48]} 15. g4 {[%clk 0:02:13]}  Qb8 {[%clk 0:00:57]} 16. gxh5 {[%clk 0:02:03]}  Nxh5 {[%clk 0:00:56]} 17. Bxg7 {[%clk 0:02:01]}  Kxg7 {[%clk 0:00:56]} 18. Rg5 {[%clk 0:02:00]}  Qb6 {[%clk 0:00:47]} 19. Rxh5 {[%clk 0:01:55]}  gxh5 {[%clk 0:00:40]} 20. Qg5+ {[%clk 0:01:53]}  Kh8 {[%clk 0:00:40]} 21. Qxh5+ {[%clk 0:01:48]}  Kg7 {[%clk 0:00:39]} 22. Rg1+ {[%clk 0:01:46]}  Qxg1+ {[%clk 0:00:38]} 0-1


[Site "https://www.chess.com"]

[Event "Titled Tuesday Blitz June 6 Early 2023"]
[White "Pranesh M"]
[Black "Naroditsky, Daniel"]
[WhiteFideId "35028600"]
[BlackFideId "2026961"]
[WhiteElo "2437"]
[BlackElo "2632"]
[Result "1-0"]
[Round "7"]
[TimeControl "180+2"]
[Date "2023.06.06"]
[WhiteClock "0:00:23"]
[BlackClock "0:00:38"]
[Board "2"]

1. e4 {[%clk 0:03:00]}  g6 {[%clk 0:02:57]} 2. d4 {[%clk 0:03:01]}  Bg7 {[%clk 0:02:58]} 3. Nc3 {[%clk 0:03:01]}  d6 {[%clk 0:02:58]} 4. Be3 {[%clk 0:03:02]}  a6 {[%clk 0:02:58]} 5. Qd2 {[%clk 0:03:03]}  b5 {[%clk 0:02:58]} 6. f3 {[%clk 0:03:03]}  Bb7 {[%clk 0:02:58]} 7. a4 {[%clk 0:03:02]}  b4 {[%clk 0:02:58]} 8. Nce2 {[%clk 0:03:03]}  a5 {[%clk 0:02:57]} 9. h4 {[%clk 0:03:03]}  Nf6 {[%clk 0:02:50]} 10. g4 {[%clk 0:03:02]}  h5 {[%clk 0:02:48]} 11. g5 {[%clk 0:03:02]}  Nfd7 {[%clk 0:02:48]} 12. Nh3 {[%clk 0:02:57]}  c5 {[%clk 0:02:44]} 13. Rd1 {[%clk 0:02:55]}  Nc6 {[%clk 0:02:43]} 14. Bg2 {[%clk 0:02:48]}  O-O {[%clk 0:02:37]} 15. O-O {[%clk 0:02:45]}  Ba6 {[%clk 0:02:35]} 16. dxc5 {[%clk 0:02:37]}  Nxc5 {[%clk 0:02:31]} 17. b3 {[%clk 0:02:37]}  Rc8 {[%clk 0:02:24]} 18. Rf2 {[%clk 0:02:30]}  Bxe2 {[%clk 0:02:09]} 19. Qxe2 {[%clk 0:02:28]}  Ne6 {[%clk 0:02:10]} 20. Rd2 {[%clk 0:02:12]}  Bc3 {[%clk 0:02:00]} 21. Rd1 {[%clk 0:02:07]}  Ne5 {[%clk 0:01:51]} 22. Kh1 {[%clk 0:01:57]}  Qc7 {[%clk 0:01:50]} 23. Rff1 {[%clk 0:01:53]}  Rfd8 {[%clk 0:01:47]} 24. Bg1 {[%clk 0:01:47]}  Bb2 {[%clk 0:01:30]} 25. f4 {[%clk 0:01:45]}  Ng4 {[%clk 0:01:28]} 26. f5 {[%clk 0:01:45]}  Nf8 {[%clk 0:01:28]} 27. Nf4 {[%clk 0:01:33]}  Be5 {[%clk 0:01:10]} 28. Nd5 {[%clk 0:01:32]}  Qb7 {[%clk 0:01:10]} 29. Bh3 {[%clk 0:01:20]}  e6 {[%clk 0:01:05]} 30. fxe6 {[%clk 0:01:20]}  Nxe6 {[%clk 0:01:05]} 31. Rd2 {[%clk 0:01:13]}  Bc3 {[%clk 0:01:01]} 32. Rd3 {[%clk 0:01:03]}  Bg7 {[%clk 0:01:01]} 33. Rd2 {[%clk 0:00:51]}  Bc3 {[%clk 0:01:00]} 34. Rd3 {[%clk 0:00:52]}  Bg7 {[%clk 0:01:01]} 35. Bxg4 {[%clk 0:00:48]}  hxg4 {[%clk 0:01:02]} 36. Qxg4 {[%clk 0:00:43]}  Rxc2 {[%clk 0:01:00]} 37. h5 {[%clk 0:00:42]}  Re8 {[%clk 0:00:49]} 38. h6 {[%clk 0:00:40]}  Be5 {[%clk 0:00:46]} 39. Rdf3 {[%clk 0:00:38]}  Rf8 {[%clk 0:00:43]} 40. Qxe6 {[%clk 0:00:32]}  fxe6 {[%clk 0:00:43]} 41. Rxf8+ {[%clk 0:00:33]}  Kh7 {[%clk 0:00:44]} 42. R8f7+ {[%clk 0:00:26]}  Qxf7 {[%clk 0:00:45]} 43. Rxf7+ {[%clk 0:00:26]}  Kg8 {[%clk 0:00:46]} 44. Rc7 {[%clk 0:00:25]}  Rxc7 {[%clk 0:00:40]} 45. Nxc7 {[%clk 0:00:25]}  d5 {[%clk 0:00:41]} 46. Nxe6 {[%clk 0:00:25]}  dxe4 {[%clk 0:00:41]} 47. Nc5 {[%clk 0:00:25]}  Bf4 {[%clk 0:00:41]} 48. Nxe4 {[%clk 0:00:25]}  Kf7 {[%clk 0:00:41]} 49. Kg2 {[%clk 0:00:26]}  Kg8 {[%clk 0:00:42]} 50. Kf3 {[%clk 0:00:26]}  Be5 {[%clk 0:00:42]} 51. Bb6 {[%clk 0:00:26]}  Kh8 {[%clk 0:00:41]} 52. Bxa5 {[%clk 0:00:26]}  Bd4 {[%clk 0:00:42]} 53. Bxb4 {[%clk 0:00:26]}  Kh7 {[%clk 0:00:42]} 54. Bc3 {[%clk 0:00:26]}  Bb6 {[%clk 0:00:39]} 55. a5 {[%clk 0:00:22]}  Bxa5 {[%clk 0:00:38]} 56. Bxa5 {[%clk 0:00:23]} 1-0


[Site "https://www.chess.com"]

[Event "Titled Tuesday Blitz June 6 Early 2023"]
[White "Terry, Renato"]
[Black "Deac, Bogdan-Daniel"]
[WhiteFideId "3803457"]
[BlackFideId "1226380"]
[WhiteElo "2575"]
[BlackElo "2644"]
[Result "1/2-1/2"]
[Round "7"]
[TimeControl "180+2"]
[Date "2023.06.06"]
[WhiteClock "0:00:05"]
[BlackClock "0:00:06"]
[Board "3"]

1. Nf3 {[%clk 0:03:00]}  d5 {[%clk 0:02:59]} 2. e3 {[%clk 0:03:00]}  Nf6 {[%clk 0:02:59]} 3. b3 {[%clk 0:03:00]}  g6 {[%clk 0:02:59]} 4. Bb2 {[%clk 0:03:00]}  Bg7 {[%clk 0:03:00]} 5. c4 {[%clk 0:03:00]}  O-O {[%clk 0:03:00]} 6. cxd5 {[%clk 0:02:56]}  Qxd5 {[%clk 0:03:00]} 7. Nc3 {[%clk 0:02:53]}  Qa5 {[%clk 0:02:58]} 8. Be2 {[%clk 0:02:48]}  c5 {[%clk 0:02:58]} 9. O-O {[%clk 0:02:48]}  Nc6 {[%clk 0:02:58]} 10. Rc1 {[%clk 0:02:35]}  Rd8 {[%clk 0:01:54]} 11. Na4 {[%clk 0:02:30]}  Ne4 {[%clk 0:01:53]} 12. Bxg7 {[%clk 0:02:26]}  Kxg7 {[%clk 0:01:54]} 13. Qc2 {[%clk 0:01:57]}  Nxd2 {[%clk 0:01:43]} 14. Qb2+ {[%clk 0:01:57]}  Kg8 {[%clk 0:01:15]} 15. Rxc5 {[%clk 0:01:57]}  Nxf3+ {[%clk 0:01:14]} 16. Bxf3 {[%clk 0:01:57]}  Qd2 {[%clk 0:01:12]} 17. Rc2 {[%clk 0:01:52]}  Qd6 {[%clk 0:01:11]} 18. a3 {[%clk 0:01:45]}  Ne5 {[%clk 0:00:45]} 19. Be2 {[%clk 0:01:26]}  Bf5 {[%clk 0:00:38]} 20. Rcc1 {[%clk 0:01:26]}  Rac8 {[%clk 0:00:23]} 21. h3 {[%clk 0:01:10]}  Qb8 {[%clk 0:00:15]} 22. Nc5 {[%clk 0:01:03]}  Nd7 {[%clk 0:00:08]} 23. Na4 {[%clk 0:01:02]}  Nf6 {[%clk 0:00:07]} 24. Rfd1 {[%clk 0:00:48]}  Rxc1 {[%clk 0:00:07]} 25. Qxc1 {[%clk 0:00:46]}  b6 {[%clk 0:00:08]} 26. Nc3 {[%clk 0:00:43]}  Be6 {[%clk 0:00:07]} 27. b4 {[%clk 0:00:42]}  Rc8 {[%clk 0:00:07]} 28. Qd2 {[%clk 0:00:41]}  a5 {[%clk 0:00:07]} 29. Nb5 {[%clk 0:00:35]}  axb4 {[%clk 0:00:07]} 30. Qxb4 {[%clk 0:00:35]}  Nd5 {[%clk 0:00:06]} 31. Qh4 {[%clk 0:00:36]}  Nf6 {[%clk 0:00:05]} 32. Nd4 {[%clk 0:00:35]}  Bc4 {[%clk 0:00:05]} 33. Bf3 {[%clk 0:00:31]}  Bd5 {[%clk 0:00:04]} 34. Bxd5 {[%clk 0:00:28]}  Nxd5 {[%clk 0:00:05]} 35. Qe4 {[%clk 0:00:28]}  Rc5 {[%clk 0:00:03]} 36. Qd3 {[%clk 0:00:21]}  e6 {[%clk 0:00:03]} 37. Qb3 {[%clk 0:00:21]}  Rc3 {[%clk 0:00:03]} 38. Qb2 {[%clk 0:00:21]}  Qc8 {[%clk 0:00:03]} 39. Nb5 {[%clk 0:00:20]}  Rc2 {[%clk 0:00:03]} 40. Qb3 {[%clk 0:00:21]}  Rc1 {[%clk 0:00:04]} 41. a4 {[%clk 0:00:19]}  Qc5 {[%clk 0:00:03]} 42. Kh2 {[%clk 0:00:16]}  h5 {[%clk 0:00:03]} 43. Rxc1 {[%clk 0:00:16]}  Qxc1 {[%clk 0:00:03]} 44. Qa2 {[%clk 0:00:15]}  Qc5 {[%clk 0:00:03]} 45. Qb2 {[%clk 0:00:14]}  Ne7 {[%clk 0:00:02]} 46. Qd4 {[%clk 0:00:12]}  Nc6 {[%clk 0:00:02]} 47. Qxc5 {[%clk 0:00:11]}  bxc5 {[%clk 0:00:03]} 48. Kg3 {[%clk 0:00:11]}  Kf8 {[%clk 0:00:03]} 49. Kf4 {[%clk 0:00:12]}  f5 {[%clk 0:00:03]} 50. Kg5 {[%clk 0:00:10]}  Kg7 {[%clk 0:00:03]} 51. g4 {[%clk 0:00:05]}  hxg4 {[%clk 0:00:03]} 52. hxg4 {[%clk 0:00:06]}  c4 {[%clk 0:00:04]} 53. Nc3 {[%clk 0:00:03]}  Kf7 {[%clk 0:00:03]} 54. Nb5 {[%clk 0:00:04]}  Kg7 {[%clk 0:00:03]} 55. Nc3 {[%clk 0:00:04]}  Kf7 {[%clk 0:00:03]} 56. f4 {[%clk 0:00:02]}  fxg4 {[%clk 0:00:02]} 57. Kxg4 {[%clk 0:00:03]}  e5 {[%clk 0:00:03]} 58. f5 {[%clk 0:00:02]}  gxf5+ {[%clk 0:00:02]} 59. Kxf5 {[%clk 0:00:03]}  Ke7 {[%clk 0:00:03]} 60. Ne4 {[%clk 0:00:02]}  Kd7 {[%clk 0:00:02]} 61. Kf6 {[%clk 0:00:02]}  Na5 {[%clk 0:00:02]} 62. Kxe5 {[%clk 0:00:02]}  Kc6 {[%clk 0:00:02]} 63. Kd4 {[%clk 0:00:03]}  Kb6 {[%clk 0:00:03]} 64. Nc3 {[%clk 0:00:02]}  Kc6 {[%clk 0:00:03]} 65. e4 {[%clk 0:00:03]}  Kd6 {[%clk 0:00:03]} 66. Nd5 {[%clk 0:00:03]}  Kc6 {[%clk 0:00:02]} 67. Ne3 {[%clk 0:00:03]}  Nb3+ {[%clk 0:00:02]} 68. Kxc4 {[%clk 0:00:02]}  Nc5 {[%clk 0:00:03]} 69. Kd4 {[%clk 0:00:02]}  Nxa4 {[%clk 0:00:03]} 70. Nc4 {[%clk 0:00:02]}  Nc5 {[%clk 0:00:03]} 71. Na5+ {[%clk 0:00:02]}  Kb5 {[%clk 0:00:03]} 72. e5 {[%clk 0:00:03]}  Ne6+ {[%clk 0:00:03]} 73. Kd5 {[%clk 0:00:03]}  Nf4+ {[%clk 0:00:03]} 74. Ke4 {[%clk 0:00:04]}  Ng6 {[%clk 0:00:04]} 75. e6 {[%clk 0:00:03]}  Kxa5 {[%clk 0:00:04]} 76. Kf5 {[%clk 0:00:04]}  Ne7+ {[%clk 0:00:05]} 77. Kf6 {[%clk 0:00:04]}  Nc6 {[%clk 0:00:05]} 78. e7 {[%clk 0:00:05]}  Nxe7 {[%clk 0:00:06]} 1/2-1/2


[Site "https://www.chess.com"]

[Event "Titled Tuesday Blitz June 6 Early 2023"]
[White "Dubov, Daniil"]
[Black "Lenderman, Aleksandr"]
[WhiteFideId "24126055"]
[BlackFideId "2021285"]
[WhiteElo "2793"]
[BlackElo "2607"]
[Result "1-0"]
[Round "7"]
[TimeControl "180+2"]
[Date "2023.06.06"]
[WhiteClock "0:00:52"]
[BlackClock "0:01:11"]
[Board "4"]

1. g3 {[%clk 0:02:59]}  e6 {[%clk 0:03:00]} 2. Bg2 {[%clk 0:02:59]}  g6 {[%clk 0:02:59]} 3. Nf3 {[%clk 0:02:56]}  Bg7 {[%clk 0:02:59]} 4. O-O {[%clk 0:02:56]}  b6 {[%clk 0:02:59]} 5. e4 {[%clk 0:02:49]}  Bb7 {[%clk 0:02:59]} 6. Re1 {[%clk 0:02:49]}  Ne7 {[%clk 0:02:58]} 7. d4 {[%clk 0:02:49]}  d6 {[%clk 0:02:56]} 8. c4 {[%clk 0:02:45]}  Nd7 {[%clk 0:02:56]} 9. Nc3 {[%clk 0:02:45]}  O-O {[%clk 0:02:56]} 10. Be3 {[%clk 0:02:36]}  e5 {[%clk 0:02:55]} 11. Qd2 {[%clk 0:02:30]}  a5 {[%clk 0:02:53]} 12. Rad1 {[%clk 0:02:29]}  Nc6 {[%clk 0:02:53]} 13. b3 {[%clk 0:02:25]}  Bc8 {[%clk 0:02:50]} 14. h3 {[%clk 0:02:24]}  Rb8 {[%clk 0:02:47]} 15. Kh2 {[%clk 0:02:23]}  Re8 {[%clk 0:02:36]} 16. Bg5 {[%clk 0:02:20]}  Bf6 {[%clk 0:02:36]} 17. Bxf6 {[%clk 0:02:07]}  Nxf6 {[%clk 0:02:37]} 18. dxe5 {[%clk 0:02:07]}  Nxe5 {[%clk 0:02:33]} 19. Nxe5 {[%clk 0:02:07]}  Rxe5 {[%clk 0:02:34]} 20. f4 {[%clk 0:02:03]}  Re8 {[%clk 0:02:34]} 21. e5 {[%clk 0:02:03]}  Nh5 {[%clk 0:02:26]} 22. Bc6 {[%clk 0:01:37]}  Rf8 {[%clk 0:02:16]} 23. exd6 {[%clk 0:01:37]}  cxd6 {[%clk 0:02:15]} 24. Qxd6 {[%clk 0:01:36]}  Qxd6 {[%clk 0:02:13]} 25. Rxd6 {[%clk 0:01:36]}  Be6 {[%clk 0:02:13]} 26. Bf3 {[%clk 0:01:29]}  Ng7 {[%clk 0:02:11]} 27. g4 {[%clk 0:01:28]}  Rfd8 {[%clk 0:02:11]} 28. Red1 {[%clk 0:01:27]}  Rxd6 {[%clk 0:02:11]} 29. Rxd6 {[%clk 0:01:28]}  Ne8 {[%clk 0:02:09]} 30. Rd4 {[%clk 0:01:28]}  Nf6 {[%clk 0:02:06]} 31. Kg3 {[%clk 0:01:26]}  Kf8 {[%clk 0:02:06]} 32. Ne4 {[%clk 0:01:16]}  Nxe4+ {[%clk 0:02:04]} 33. Bxe4 {[%clk 0:01:16]}  Ke7 {[%clk 0:01:45]} 34. g5 {[%clk 0:01:14]}  Rc8 {[%clk 0:01:39]} 35. h4 {[%clk 0:01:12]}  Rc5 {[%clk 0:01:38]} 36. Bd3 {[%clk 0:01:12]}  Rc8 {[%clk 0:01:34]} 37. h5 {[%clk 0:01:08]}  Ra8 {[%clk 0:01:18]} 38. a3 {[%clk 0:01:06]}  Rc8 {[%clk 0:01:14]} 39. Kf2 {[%clk 0:00:58]}  Ra8 {[%clk 0:01:12]} 40. Ke3 {[%clk 0:00:57]}  Rc8 {[%clk 0:01:12]} 41. h6 {[%clk 0:00:53]}  Ra8 {[%clk 0:01:11]} 42. Be4 {[%clk 0:00:52]}  Rc8 {[%clk 0:01:11]} 43. Bd5 {[%clk 0:00:52]}  Ra8 {[%clk 0:01:11]} 44. Bxa8 {[%clk 0:00:52]} 1-0


[Site "https://www.chess.com"]